lending/lending_fUSD_20241214
["ID","MTS","AMOUNT","RATE_DAILY","PERIOD"]
[345378002,1734207042883,-19241.83016521,0.0001988,2]
[345378003,1734207042894,-220.0,0.0001988,2]
[345378004,1734207042903,-500.0,0.0001988,2]
[345378005,1734207042912,-10848.59702626,0.0001988,2]
[345378006,1734207042927,-1830.0600117,0.0001988,2]
[345378007,1734207042975,-6332.2849218,0.0001988,2]
[345378008,1734207043082,-296.21242944,0.0001988,2]
[345378009,1734207043136,-376.23473,0.0001988,2]
[345378010,1734207043147,-713.69713628,0.0001988,2]
[345378011,1734207043158,-648.95514452,0.0001988,2]
[345378012,1734207043166,-2074.31197067,0.0001988,2]
[345378013,1734207043178,-2346.98472933,0.0001988,2]
[345378014,1734207043187,-760.8448,0.0001988,2]
[345378015,1734207043196,-6309.47047069,0.0001988,2]
[345378016,1734207043208,-3293.69045077,0.0001988,2]
[345378024,1734207045748,-704.54020119,0.0001988,2]
[345378025,1734207045802,-996.300305,0.0001988,2]
[345378026,1734207045814,-89588.00000006,0.0001988,2]
[345378027,1734207045855,-14567.37053923,0.0001988,2]
[345378028,1734207045909,-409.57141649,0.0001988,2]
[345378029,1734207045921,-3999.42611812,0.0001988,2]
[345378030,1734207045964,-7160.0000025,0.0001988,2]
[345378031,1734207046018,-51751.71673622,0.0001988,2]
[345378032,1734207046405,459.7,0.00010137,2]
[345378033,1734207046631,459.7,0.00016813,2]
[345378035,1734207135369,3259.0,0.000167,2]
[345378036,1734207135987,2933.0,0.000167,2]
[345378037,1734207303570,3938.0,0.00019,30]
[345378038,1734207303897,3938.0,0.00019,30]
[345378039,1734207304253,3938.0,0.00019,30]
[345378040,1734207304547,3938.0,0.00019,30]
[345378041,1734207305108,3938.0,0.00019,30]
[345378042,1734207305408,3938.0,0.00019,30]
[345378043,1734207305712,3938.0,0.00019,30]
[345378044,1734207306015,3938.0,0.00019,30]
[345378045,1734207603733,2363.0,0.00019,30]
[345378046,1734207604028,2363.0,0.00019,30]
[345378047,1734207604359,2363.0,0.00019,30]
[345378048,1734207604661,2363.0,0.00019,30]
[345378049,1734207605088,2363.0,0.00019,30]
[345378050,1734207605392,2363.0,0.00019,30]
[345378051,1734207605715,2363.0,0.00019,30]
[345378052,1734207606014,2363.0,0.00019,30]
[345378053,1734207903980,1417.0,0.00019,30]
[345378054,1734207904131,1417.0,0.00019,30]
[345378055,1734207904580,1417.0,0.00019,30]
[345378056,1734207904929,1417.0,0.00019,30]
[345378057,1734207905198,1417.0,0.00019,30]
[345378058,1734207905501,1417.0,0.00019,30]
[345378059,1734207906329,1417.0,0.00019,30]
[345378060,1734207906644,1417.0,0.00019,30]
[345378061,1734207908242,9248.22261527,0.0001,2]
[345378062,1734207908275,440000.0,0.0001,2]
[345378063,1734207908302,10000.0,0.0001,2]
[345378064,1734207908330,5000.0,0.0001,2]
[345378065,1734207908356,15000.0,0.0001,2]
[345378066,1734207929929,4365.78846638,9e-05,2]
[345378067,1734207955312,5977.5091699,6.94e-05,2]
[345378068,1734207967382,10090.41040733,7e-05,2]
[345378071,1734208027265,-8139.36218222,0.0001,2]
[345378078,1734208053127,-791.46352883,0.0001,2]
[345378084,1734208140107,156.37,0.00017297,30]
[345378085,1734208145111,-300.0,9.999e-05,2]
[345378086,1734208145352,-265726.7526,0.0001,2]
[345378087,1734208147118,-38533.80286,0.0001,2]
[345378088,1734208173097,-24590.47654,0.0001,2]
[345378089,1734208203377,851.0,0.00019,30]
[345378090,1734208203694,851.0,0.00019,30]
[345378091,1734208204005,851.0,0.00019,30]
[345378092,1734208204303,851.0,0.00019,30]
[345378093,1734208204612,851.0,0.00019,30]
[345378094,1734208204926,851.0,0.00019,30]
[345378095,1734208205249,851.0,0.00019,30]
[345378096,1734208205594,851.0,0.00019,30]
[345378097,1734208205902,851.0,0.00019,30]
[345378098,1734208206713,851.0,0.00019,30]
[345378099,1734208207035,851.0,0.00019,30]
[345378100,1734208207378,851.0,0.00019,30]
[345378101,1734208207661,851.0,0.00019,30]
[345378102,1734208207977,851.0,0.00019,30]
[345378117,1734208232037,-89637.86337967,0.0001,2]
[345378118,1734208232050,-611.52841288,0.0001,2]
[345378119,1734208232096,-785.62130943,0.0001,2]
[345378120,1734208232151,-99316.51174709,0.0001,2]
[345378121,1734208232262,-1634.03487283,0.0001,2]
[345378146,1734208237906,-7013.3875,0.0001,2]
[345378147,1734208238232,-5088.991941,0.0001,2]
[345378148,1734208238248,-1047.1220004,0.0001,2]
[345378149,1734208238293,-2481.71778002,0.0001,2]
[345378150,1734208238304,-1954.3225435,0.0001,2]
[345378151,1734208238316,-4048.5,0.0001,2]
[345378152,1734208238327,-1916.34,0.0001,2]
[345378170,1734208240068,-665.31684,0.0001,2]
[345378171,1734208240231,-861.510002,0.0001,2]
[345378172,1734208240243,-1438.13999994,0.0001,2]
[345378181,1734208243351,-4898.32392425,0.0001,2]
[345378185,1734208243409,-1289.949935,0.0001,2]
[345378186,1734208243565,-63.99727514,0.0001,2]
[345378195,1734208246078,-1016.32085,0.0001,2]
[345378196,1734208246135,-20066.55176146,0.0001,2]
[345378200,1734208364542,200.0,9.5e-05,3]
[345378201,1734208366636,500.0,9.6e-05,3]
[345378202,1734208502965,255.0,0.00019,30]
[345378203,1734208503286,255.0,0.00019,30]
[345378204,1734208503581,255.0,0.00019,30]
[345378205,1734208503933,255.0,0.00019,30]
[345378206,1734208504228,255.0,0.00019,30]
[345378207,1734208504601,255.0,0.00019,30]
[345378208,1734208504910,255.0,0.00019,30]
[345378209,1734208505195,255.0,0.00019,30]
[345378210,1734208505486,255.0,0.00019,30]
[345378211,1734208505771,255.0,0.00019,30]
[345378212,1734208506113,255.0,0.00019,30]
[345378213,1734208506416,255.0,0.00019,30]
[345378214,1734208506843,255.0,0.00019,30]
[345378215,1734208507231,255.0,0.00019,30]
[345378216,1734208804075,153.0,0.00019,30]
[345378217,1734208804404,153.0,0.00019,30]
[345378218,1734208804707,153.0,0.00019,30]
[345378219,1734208805025,153.0,0.00019,30]
[345378220,1734208805836,153.0,0.00019,30]
[345378221,1734208806151,153.0,0.00019,30]
[345378222,1734208806479,153.0,0.00019,30]
[345378224,1734209071659,156.37,0.00016658,30]
[345378225,1734209103753,155.0,0.00019,30]
[345378226,1734209104266,155.0,0.00019,30]
[345378227,1734209181121,1024.9,9.49e-05,2]
[345378228,1734209227193,1821.034051,9.558e-05,2]
[345378229,1734209230155,-6976.9609028,9.606e-05,2]
[345378230,1734209235126,200.0,9.5e-05,3]
[345378231,1734209237245,500.0,9.6e-05,3]
[345378233,1734209345111,-150.0,9.605e-05,2]
[345378234,1734209345132,-3720.777834,9.606e-05,2]
[345378235,1734209345727,160.49,8.235e-05,2]
[345378236,1734209356175,-2058.82040196,9.606e-05,2]
[345378237,1734209368094,-5320.53564,9.606e-05,2]
[345378238,1734209404609,156.23020803,0.00019,30]
[345378241,1734209432216,-300.0,9.605e-05,2]
[345378242,1734209432226,-29102.14307824,9.606e-05,2]
[345378243,1734209432238,-62799.762143,9.606e-05,2]
[345378244,1734209432247,-206.88973782,9.606e-05,2]
[345378245,1734209432257,-2184.09333485,9.606e-05,2]
[345378246,1734209432272,-4552.27180044,9.606e-05,2]
[345378247,1734209432282,-700.0,9.7e-05,3]
[345378248,1734209432292,-9211.12436776,9.702e-05,2]
[345378249,1734209432304,-1413.03801867,9.702e-05,2]
[345378250,1734209432314,-150.0,9.781e-05,2]
[345378251,1734209432323,-1000.0,9.8e-05,3]
[345378252,1734209432333,-1300.0,9.9e-05,3]
[345378253,1734209432342,-500.0,9.973e-05,2]
[345378254,1734209432352,-1006.73624498,9.999e-05,3]
[345378255,1734209432362,-234.23629305,9.999e-05,2]
[345378256,1734209432373,-864.00000011,9.999e-05,2]
[345378257,1734209432389,-254.46,9.999e-05,2]
[345378258,1734209432435,-361.30370684,9.999e-05,2]
[345378259,1734209432445,-1714.0,9.999e-05,2]
[345378260,1734209432455,-1714.0,9.999e-05,2]
[345378261,1734209432466,-1714.0,9.999e-05,2]
[345378262,1734209432477,-544.53921359,9.999e-05,2]
[345378263,1734209432489,-1169.46078641,9.999e-05,2]
[345378264,1734209432498,-1714.0,9.999e-05,2]
[345378265,1734209432509,-500.0,9.999e-05,2]
[345378266,1734209432520,-1417.16983533,9.999e-05,5]
[345378267,1734209432531,-1181.05,9.999e-05,5]
[345378268,1734209432544,-29327.43486319,9.999e-05,5]
[345378270,1734209432553,-500.0,9.999e-05,2]
[345378271,1734209432564,-500.0,9.999e-05,2]
[345378272,1734209432573,-500.0,9.999e-05,2]
[345378273,1734209432582,-500.0,9.999e-05,2]
[345378274,1734209432591,-500.0,9.999e-05,2]
[345378275,1734209432601,-430.0,9.999e-05,2]
[345378276,1734209432611,-181396.84660255,0.0001,2]
[345378305,1734209438142,-329.43464116,0.0001,2]
[345378306,1734209438228,-26540.01369502,0.0001,2]
[345378307,1734209438249,-20684.90651849,0.0001,2]
[345378308,1734209438466,-16131.68368021,0.0001,2]
[345378330,1734209440159,-575.62500001,0.0001,2]
[345378331,1734209440216,-2106.8250022,0.0001,2]
[345378332,1734209440276,-40940.87787972,0.0001,2]
[345378333,1734209440287,-95232.92895403,0.0001,2]
[345378334,1734209440299,-3643.47182392,0.0001,2]
[345378335,1734209440333,-1100.817,0.0001,2]
[345378336,1734209440388,-1051.3558125,0.0001,2]
[345378355,1734209443165,-419.81087525,0.0001,2]
[345378357,1734209443177,-24662.13741714,0.0001,2]
[345378359,1734209443219,-1931.6278444,0.0001,2]
[345378360,1734209443233,-1839.88942687,0.0001,2]
[345378361,1734209443275,-744.5,0.0001,2]
[345378362,1734209443348,-23233.58788221,0.0001,2]
[345378364,1734209443591,-1068.6,0.0001,2]
[345378372,1734209446108,-2122.4739642,0.0001,2]
[345378373,1734209446183,-775.21787812,0.0001,2]
[345378374,1734209446200,-597.33007322,0.0001,2]
[345378375,1734209446279,-2419.38067968,0.0001,2]
[345378376,1734209446388,-429.723231,0.0001,2]
[345378382,1734209914868,1000.0,0.0002,120]
[345378383,1734209937837,5003.88,0.0001511,10]
[345378423,1734210213646,156.37,0.00016658,30]
[345378424,1734210314002,178.21,9.51e-05,2]
[345378432,1734210436266,-250.82952264,9.8e-05,2]
[345378437,1734210548213,-300.0,9.799e-05,2]
[345378438,1734210548240,-3022.94547736,9.8e-05,2]
[345378439,1734210548265,-194.473,9.8e-05,2]
[345378440,1734210548285,-266.90777319,9.8e-05,2]
[345378441,1734210548307,-354.0172556,9.8e-05,2]
[345378442,1734210548329,-2000.92892194,9.8e-05,2]
[345378443,1734210548351,-1489.75344816,9.8e-05,2]
[345378444,1734210548373,-354.01725558,9.9e-05,2]
[345378445,1734210548399,-178.41,9.947e-05,2]
[345378446,1734210548420,-500.0,9.999e-05,2]
[345378447,1734210548443,-150.0,9.999e-05,2]
[345378448,1734210548464,-272132.84000142,0.0001,2]
[345378449,1734210549094,-27388.26874,0.0001,2]
[345378450,1734210563133,-46167.39036,0.0001,2]
[345378455,1734210632359,-300.0,9.999e-05,2]
[345378456,1734210632370,-1098.56831943,0.0001,2]
[345378457,1734210632416,-428.45397449,0.0001,2]
[345378464,1734210632475,-278.06409137,0.0001,2]
[345378465,1734210632730,-6926.28485662,0.0001,2]
[345378466,1734210632742,-281.28988996,0.0001,2]
[345378467,1734210632753,-502.97036173,0.0001,2]
[345378469,1734210632770,-99959.66185621,0.0001,2]
[345378471,1734210632781,-2709.1,0.0001,2]
[345378473,1734210632791,-308232.01694961,0.0001,2]
[345378474,1734210632803,-84951.16579285,0.0001,2]
[345378484,1734210638363,-8397.33288894,0.0001,2]
[345378485,1734210638376,-8169.12827,0.0001,2]
[345378486,1734210638419,-4956.999993,0.0001,2]
[345378487,1734210638589,-1637.04981067,0.0001,2]
[345378488,1734210638700,-995.66279727,0.0001,2]
[345378489,1734210638711,-1983.84423874,0.0001,2]
[345378511,1734210640690,-254.953386,0.0001,2]
[345378512,1734210640752,-4633.1293317,0.0001,2]
[345378513,1734210640764,-440.99335976,0.0001,2]
[345378523,1734210643340,-260.30701374,0.0001,2]
[345378525,1734210643811,-125.02481035,0.0001,2]
[345378526,1734210643844,-3693.882923,0.0001,2]
[345378533,1734210646309,-165.42,9.658e-05,2]
[345378534,1734210646319,-224.75999,0.0001,2]
[345378535,1734210646332,-1201.06071539,0.0001,2]
[345378536,1734210646420,-964.58581498,0.0001,2]
[345378537,1734210646488,-471.86,0.0001,2]
[345378538,1734210646546,-29191.2763716,0.0001,2]
[345378539,1734210646624,-34772.807007,0.0001,2]
[345378540,1734210646639,-10076.042,0.0001,2]
[345378554,1734210838327,300.0,9.6e-05,3]
[345378556,1734211044996,1206.97,8.219e-05,2]
[345378557,1734211101706,1000.0,0.00019,30]
[345378558,1734211126886,2568.79,9.486e-05,2]
[345378559,1734211159871,661.678178,9.573e-05,2]
[345378560,1734211161662,156.37,0.00016658,30]
[345378561,1734211232075,200.0,9.551e-05,2]
[345378562,1734211242967,178.21,7.641e-05,2]
[345378563,1734211273349,2516.23,9.292e-05,2]
[345378564,1734211278975,1500.0,9.292e-05,2]
[345378565,1734211300603,300.0,9.254e-05,2]
[345378566,1734211337409,6134.45,9.302e-05,2]
[345378567,1734211344022,183.98,9.302e-05,2]
[345378575,1734211366809,200.0,9.256e-05,2]
[345378576,1734211376433,1708.58,9.256e-05,2]
[345378577,1734211393601,212.02,9.255e-05,2]
[345378578,1734211393814,212.02,9.257e-05,2]
[345378579,1734211394015,212.02,9.259e-05,2]
[345378580,1734211394426,212.02,9.262e-05,2]
[345378581,1734211394458,212.02,9.264e-05,2]
[345378582,1734211394659,212.02,9.267e-05,2]
[345378583,1734211394860,212.02,9.269e-05,2]
[345378584,1734211395069,212.02,9.272e-05,2]
[345378585,1734211395296,212.02,9.274e-05,2]
[345378586,1734211395506,212.02,9.276e-05,2]
[345378587,1734211395713,212.02,9.279e-05,2]
[345378588,1734211395914,212.02,9.281e-05,2]
[345378589,1734211396304,212.02,9.284e-05,2]
[345378590,1734211396506,212.02,9.286e-05,2]
[345378591,1734211396746,212.02,9.289e-05,2]
[345378592,1734211396942,212.02,9.291e-05,2]
[345378593,1734211397350,212.02,9.294e-05,2]
[345378594,1734211397553,212.02,9.296e-05,2]
[345378595,1734211397760,212.02,9.298e-05,2]
[345378596,1734211398184,212.02,9.301e-05,2]
[345378597,1734211406187,23900.0,9.255e-05,2]
[345378598,1734211413727,1000.0,9.255e-05,2]
[345378599,1734211445157,2651.57,9.275e-05,2]
[345378600,1734211460296,1885.36,9.283e-05,2]
[345378601,1734211471706,250.0,9.283e-05,2]
[345378602,1734211486537,2169.31,9.283e-05,2]
[345378603,1734211534876,584.49,9.601e-05,2]
[345378604,1734211623795,250.0,9.581e-05,2]
[345378608,1734211633347,-1371.33951182,9.621e-05,2]
[345378609,1734211636914,400.0,9.6e-05,3]
[345378610,1734211668188,4544.97,9.202e-05,2]
[345378613,1734211715748,165.42,7.362e-05,2]
[345378620,1734211740187,169.24,9.202e-05,2]
[345378627,1734211758162,1442.77,9.302e-05,2]
[345378628,1734211764101,-2661.23048818,9.621e-05,2]
[345378629,1734211764122,-841.12,9.654e-05,2]
[345378630,1734211764142,-196.04,9.699e-05,2]
[345378631,1734211764163,-603.34734382,9.7e-05,3]
[345378632,1734211766078,-296.65265618,9.7e-05,3]
[345378633,1734211766099,-251.07285222,9.702e-05,2]
[345378634,1734211769138,-824.28526516,9.654e-05,2]
[345378635,1734211769159,-48.92714778,9.702e-05,2]
[345378636,1734211769181,-2997.56885106,9.703e-05,2]
[345378638,1734211822334,250.0,9.585e-05,2]
[345378642,1734211831548,-8891.40070011,9.703e-05,2]
[345378643,1734211831661,-580.87891067,9.703e-05,2]
[345378644,1734211831673,-20836.97668371,9.703e-05,2]
[345378645,1734211831832,-3898.17485445,9.703e-05,2]
[345378646,1734211831842,-744.17,9.714e-05,2]
[345378647,1734211831854,-161.0,9.747e-05,2]
[345378648,1734211831863,-1300.0,9.8e-05,3]
[345378649,1734211831873,-2140.83,9.877e-05,2]
[345378650,1734211831882,-150.0,9.899e-05,2]
[345378651,1734211831892,-1000.0,9.9e-05,2]
[345378652,1734211831902,-1000.0,9.9e-05,2]
[345378653,1734211831911,-1000.0,9.9e-05,2]
[345378654,1734211831921,-1003.0,9.9e-05,2]
[345378655,1734211831930,-2619.02,9.9e-05,2]
[345378656,1734211831940,-194.474,9.9e-05,2]
[345378657,1734211831950,-1000.0,9.9e-05,2]
[345378658,1734211831959,-1800.0,9.9e-05,3]
[345378659,1734211831970,-15366.0,9.973e-05,2]
[345378660,1734211831979,-159.84756609,9.973e-05,2]
[345378661,1734211831990,-689.88009046,9.999e-05,2]
[345378662,1734211831999,-500.0,9.999e-05,2]
[345378663,1734211832009,-295.38393479,9.999e-05,2]
[345378664,1734211832018,-166.85348503,9.999e-05,2]
[345378665,1734211832028,-221.7158,9.999e-05,2]
[345378666,1734211832037,-2736.58160871,0.0001,2]
[345378667,1734211832049,-43484.39003665,0.0001,2]
[345378708,1734211833763,1026.45,9.585e-05,2]
[345378710,1734211837640,-1937.25,0.0001,2]
[345378711,1734211837869,-811.351313,0.0001,2]
[345378712,1734211837890,-7132.97,0.0001,2]
[345378714,1734211837906,-339.95889146,0.0001,2]
[345378716,1734211837918,-693.01058082,0.0001,2]
[345378720,1734211837965,-16224.2031207,0.0001,2]
[345378723,1734211837976,-4189.71228178,0.0001,2]
[345378724,1734211837989,-1477.47,0.0001,2]
[345378725,1734211838000,-202184.8175185,0.0001,2]
[345378728,1734211839567,-1291.15184078,0.0001,2]
[345378729,1734211839580,-2546.80475376,0.0001,2]
[345378730,1734211839689,-12224.8375008,0.0001,2]
[345378731,1734211839703,-23093.50299752,0.0001,2]
[345378732,1734211839754,-346.32,0.0001,2]
[345378733,1734211839766,-21150.89833011,0.0001,2]
[345378738,1734211842606,-804.72816314,0.0001,2]
[345378739,1734211842719,-497.5200002,0.0001,2]
[345378740,1734211842730,-178976.31885174,0.0001,2]
[345378741,1734211842775,-655.49802207,0.0001,2]
[345378743,1734211845727,-126.93538655,0.0001,2]
[345378744,1734211845831,-1268.09225498,0.0001,2]
[345378745,1734211858640,300.0,9.6e-05,3]
[345378747,1734211921437,382.037,9.5e-05,2]
[345378749,1734212022077,1269.91,8.589e-05,2]
[345378750,1734212025553,987363.89220485,9.603e-05,2]
[345378751,1734212186620,157.08,0.00016658,30]
[345378752,1734212266785,178.21,7.531e-05,2]
[345378753,1734212293690,1500.0,9.455e-05,2]
[345378754,1734212326401,13873.37,9.411e-05,2]
[345378755,1734212365777,220.43,9.369e-05,2]
[345378756,1734212401740,3171.51,9.459e-05,2]
[345378758,1734212441148,604.66,9.374e-05,2]
[345378761,1734212492167,250.0,9.398e-05,2]
[345378762,1734212496803,23900.0,9.424e-05,2]
[345378763,1734212569794,155.13,9.358e-05,2]
[345378764,1734212570221,155.13,9.361e-05,2]
[345378765,1734212570428,155.13,9.363e-05,2]
[345378766,1734212570629,155.13,9.366e-05,2]
[345378767,1734212570860,155.13,9.369e-05,2]
[345378768,1734212571075,155.13,9.371e-05,2]
[345378769,1734212571299,155.13,9.374e-05,2]
[345378770,1734212571522,155.13,9.376e-05,2]
[345378771,1734212571730,155.13,9.379e-05,2]
[345378772,1734212572103,155.13,9.382e-05,2]
[345378773,1734212572145,155.13,9.384e-05,2]
[345378774,1734212572534,155.13,9.387e-05,2]
[345378775,1734212572758,155.13,9.389e-05,2]
[345378776,1734212573239,155.13,9.392e-05,2]
[345378777,1734212573431,155.13,9.395e-05,2]
[345378778,1734212573641,155.13,9.397e-05,2]
[345378779,1734212573850,155.13,9.4e-05,2]
[345378780,1734212574047,155.13,9.403e-05,2]
[345378781,1734212574262,155.13,9.405e-05,2]
[345378782,1734212596942,365.944,9.5e-05,2]
[345378783,1734212603607,250.0,9.358e-05,2]
[345378784,1734212620884,1000.0,9.396e-05,2]
[345378785,1734212730561,165.93,9.489e-05,2]
[345378786,1734212761446,1000.0,0.00019,45]
[345378796,1734212819356,183.98,9.455e-05,2]
[345378797,1734212825563,1871.38,9.455e-05,2]
[345378798,1734212839354,500.0,9.6e-05,3]
[345378799,1734212849010,-167.1,9.681e-05,2]
[345378800,1734212849032,-1000.0,9.7e-05,3]
[345378801,1734212849054,-993.74985987,9.8e-05,3]
[345378805,1734212932131,3929.29,9.317e-05,2]
[345378807,1734212945698,-506.25014013,9.8e-05,3]
[345378808,1734212945723,-2100.0,9.9e-05,3]
[345378809,1734212945748,-1030.28721595,9.999e-05,3]
[345378810,1734212945775,-2600.0,0.0001,3]
[345378811,1734212949153,-375.34334243,9.863e-05,2]
[345378812,1734212949174,-150.0,9.863e-05,2]
[345378813,1734212949194,-654.72601863,9.899e-05,2]
[345378814,1734212949217,-150.0,9.899e-05,2]
[345378815,1734212949238,-24675.9615,9.9e-05,2]
[345378816,1734212949258,-798.9818,9.9e-05,2]
[345378817,1734212949279,-428.75141396,9.9e-05,2]
[345378818,1734212953114,-3680.39218604,9.9e-05,2]
[345378819,1734212953135,-3056.5422,9.9e-05,2]
[345378820,1734212953156,-10008.8234,9.9e-05,2]
[345378821,1734212953176,-10001.1516,9.9e-05,2]
[345378822,1734212953211,-4126.1759,9.9e-05,2]
[345378823,1734212953234,-354.01725558,9.9e-05,2]
[345378824,1734212953255,-500.48140561,9.973e-05,2]
[345378825,1734212953277,-500.0,9.973e-05,2]
[345378826,1734212953298,-159.85174053,9.973e-05,2]
[345378827,1734212953319,-2527.644,9.973e-05,2]
[345378828,1734212953340,-167.787,9.973e-05,2]
[345378829,1734212953363,-500.0,9.999e-05,2]
[345378830,1734212953385,-1072.0,0.0001,2]
[345378831,1734212953407,-9512.54817224,0.0001,2]
[345378832,1734212956098,-202093.46264392,0.0001,2]
[345378833,1734212967094,-960.0,0.0001,2]
[345378834,1734212967117,-149924.51636731,0.0001,2]
[345378840,1734213031822,-509.22801043,9.9e-05,2]
[345378841,1734213031940,-1632.45000001,9.9e-05,2]
[345378842,1734213031952,-101677.69811731,9.9e-05,2]
[345378843,1734213031964,-68009.69616691,9.9e-05,2]
[345378844,1734213032002,-158794.23792845,9.9e-05,2]
[345378845,1734213032063,-1276.63304039,9.9e-05,2]
[345378847,1734213032075,-3000.0,9.9e-05,2]
[345378856,1734213037692,-270.0,9.899e-05,2]
[345378857,1734213037702,-1023.96944553,9.9e-05,2]
[345378858,1734213037714,-10985.55453406,9.9e-05,2]
[345378859,1734213037813,-20814.75677674,9.9e-05,2]
[345378860,1734213037824,-11972.43218017,9.9e-05,2]
[345378861,1734213037839,-864.0,0.0001,2]
[345378862,1734213037848,-199954.92111928,0.0001,2]
[345378863,1734213037937,-3600.0000002,0.0001,2]
[345378864,1734213038003,-2284.0,0.0001,2]
[345378865,1734213038015,-326.82220256,0.0001,2]
[345378866,1734213038027,-816.66,0.0001,2]
[345378869,1734213039826,-6075.26877098,0.0001,2]
[345378870,1734213039844,-349.2624234,0.0001,2]
[345378871,1734213039960,-1906.35,0.0001,2]
[345378872,1734213040094,-361.44000017,0.0001,2]
[345378881,1734213042810,-1277.66503403,0.0001,2]
[345378882,1734213042822,-3042.216401,0.0001,2]
[345378883,1734213042976,-800.31300238,0.0001,2]
[345378884,1734213042988,-3619.81305,0.0001,2]
[345378885,1734213042999,-5256.5,0.0001,2]
[345378886,1734213043033,-16187.61555494,0.0001,2]
[345378887,1734213043044,-317.69620674,0.0001,2]
[345378888,1734213043056,-1801.87005,0.0001,2]
[345378889,1734213043068,-106584.999965,0.0001,2]
[345378890,1734213043096,-36649.36115,0.0001,2]
[345378891,1734213043180,-47.92203589,0.0001,2]
[345378894,1734213045672,-784.0,0.0001,2]
[345378895,1734213045683,-9784.80131148,0.0001,2]
[345378896,1734213045842,-370.58734935,0.0001,2]
[345378897,1734213045858,-44440.37260434,0.0001,2]
[345378898,1734213045921,-0.547415,0.0001,2]
[345378899,1734213045933,-562892.74708329,0.0001,2]
[345378900,1734213045960,-47072.51995839,0.0001,2]
[345378903,1734213099596,157.08,0.00016658,30]
[345378904,1734213132200,1249.92,8.694e-05,2]
[345378906,1734213280738,350.781,9.5e-05,2]
[345378907,1734213462634,250.0,9.43e-05,2]
[345378908,1734213465192,716.27,9.43e-05,2]
[345378909,1734213507213,23900.0,9.411e-05,2]
[345378910,1734213518942,155.91,9.411e-05,2]
[345378911,1734213519163,155.91,9.414e-05,2]
[345378912,1734213519375,155.91,9.417e-05,2]
[345378913,1734213519583,155.91,9.42e-05,2]
[345378914,1734213519802,155.91,9.423e-05,2]
[345378915,1734213520197,155.91,9.426e-05,2]
[345378916,1734213520432,155.91,9.429e-05,2]
[345378917,1734213520625,155.91,9.432e-05,2]
[345378918,1734213520853,155.91,9.435e-05,2]
[345378919,1734213521058,155.91,9.438e-05,2]
[345378920,1734213521277,155.91,9.441e-05,2]
[345378921,1734213521506,155.91,9.444e-05,2]
[345378922,1734213521725,155.91,9.447e-05,2]
[345378923,1734213521956,155.91,9.45e-05,2]
[345378924,1734213522375,155.91,9.452e-05,2]
[345378925,1734213522440,155.91,9.455e-05,2]
[345378926,1734213522742,155.91,9.458e-05,2]
[345378927,1734213531538,5951.06,0.00019,30]
[345378928,1734213594286,1000.0,9.346e-05,2]
[345378929,1734213607654,170.22,7.467e-05,2]
[345378930,1734213608540,1691.45,9.334e-05,2]
[345378931,1734213647703,-1800.0,9.7e-05,3]
[345378932,1734213647728,-3600.0,9.8e-05,3]
[345378933,1734213662536,-5400.0,9.9e-05,3]
[345378934,1734213662563,-7200.0,0.0001,3]
[345378935,1734213673448,-2229.14691,9.651e-05,2]
[345378936,1734213673480,-1033.54395245,9.7e-05,2]
[345378937,1734213673510,-150.0,9.799e-05,2]
[345378938,1734213673541,-300.0,9.799e-05,2]
[345378939,1734213673571,-231359.1276,9.8e-05,2]